fUST/lending_fUST_20240701
["ID","MTS","AMOUNT","RATE_DAILY","PERIOD"]
[330823994,1719844241649,-293.1302778,0.000159,2]
[330823996,1719844241659,-293.1302778,0.000159,2]
[330823998,1719844241669,-153.0,0.000159,2]
[330824000,1719844241679,-206.0005558,0.000159,2]
[330824002,1719844241689,-293.1302778,0.000159,2]
[330824004,1719844241699,-306.0,0.000159,2]
[330824006,1719844241709,-153.0,0.000159,2]
[330824008,1719844241719,-153.0,0.000159,2]
[330824010,1719844241728,-293.1302778,0.000159,2]
[330824012,1719844241738,-153.0,0.000159,2]
[330824014,1719844241748,-153.0,0.000159,2]
[330824016,1719844241758,-293.6533468,0.000159,2]
[330824018,1719844241768,-293.1302778,0.000159,2]
[330824020,1719844241777,-307.3343267,0.000159,2]
[330824022,1719844241787,-153.0,0.000159,2]
[330824024,1719844241797,-293.1302778,0.000159,2]
[330824026,1719844241807,-153.0,0.000159,2]
[330824028,1719844241816,-159.0174166,0.000159,2]
[330824030,1719844241825,-293.1302778,0.000159,2]
[330824032,1719844241835,-293.1302778,0.000159,2]
[330824034,1719844241844,-293.1302778,0.000159,2]
[330824036,1719844241854,-411.1016462,0.000159,2]
[330824038,1719844241866,-153.0,0.000159,2]
[330824039,1719844241876,-293.1302778,0.000159,2]
[330824041,1719844241885,-153.0,0.000159,2]
[330824042,1719844241895,-206.0005558,0.000159,2]
[330824044,1719844241905,-293.0841251,0.000159,2]
[330824046,1719844241914,-500.0,0.0001598,2]
[330824047,1719844241924,-500.0,0.00015981,2]
[330824049,1719844241934,-500.0,0.00015981,2]
[330824051,1719844241943,-527.55,0.00015984,2]
[330824052,1719844241953,-1067.34,0.00015984,2]
[330824053,1719844241963,-500.0,0.00015984,2]
[330824054,1719844241973,-500.0,0.00015984,2]
[330824055,1719844241983,-540.01,0.00015984,2]
[330824056,1719844241992,-1085.54,0.00015984,2]
[330824057,1719844242002,-600.53,0.00015984,2]
[330824058,1719844242012,-4275.34,0.00015984,2]
[330824059,1719844242022,-500.0,0.00015984,2]
[330824060,1719844242032,-500.0,0.00015985,2]
[330824061,1719844242041,-924.22,0.00015985,2]
[330824062,1719844242051,-500.0,0.00015985,2]
[330824063,1719844242061,-767.93,0.00015985,2]
[330824064,1719844242070,-1941.68,0.00015985,2]
[330824065,1719844242079,-500.0,0.00015985,2]
[330824066,1719844242089,-500.0,0.00015985,2]
[330824067,1719844242098,-500.0,0.00015985,2]
[330824068,1719844242108,-500.0,0.00015985,2]
[330824069,1719844242118,-500.0,0.00015985,2]
[330824070,1719844242127,-500.0,0.00015985,2]
[330824071,1719844242137,-500.0,0.00015985,2]
[330824072,1719844242146,-500.0,0.00015985,2]
[330824073,1719844242156,-500.0,0.00015985,2]
[330824074,1719844242165,-225.41646181,0.00015985,2]
[330824075,1719844242174,-787.78,0.00015985,2]
[330824076,1719844242184,-500.0,0.00015985,2]
[330824077,1719844242194,-764.17,0.00015985,2]
[330824078,1719844242203,-545.76,0.00015985,2]
[330824079,1719844242214,-3687.93,0.00015985,2]
[330824080,1719844242223,-569.83,0.00015985,2]
[330824081,1719844242233,-500.0,0.00015985,2]
[330824082,1719844242243,-500.0,0.00015985,2]
[330824083,1719844242252,-1005.8,0.00015985,2]
[330824084,1719844242262,-500.0,0.00015985,2]
[330824085,1719844242271,-524.35,0.00015985,2]
[330824086,1719844242281,-500.0,0.00015985,2]
[330824087,1719844242291,-678.69,0.00015985,2]
[330824088,1719844242301,-500.0,0.00015985,2]
[330824089,1719844242310,-500.0,0.00015988,2]
[330824090,1719844242319,-500.0,0.00015988,2]
[330824091,1719844242328,-505.15307861,0.00015988,2]
[330824092,1719844242338,-500.0,0.00015988,2]
[330824093,1719844242347,-500.0,0.00015988,2]
[330824094,1719844242358,-500.0,0.00015988,2]
[330824095,1719844242367,-500.0,0.00015988,2]
[330824096,1719844242377,-500.0,0.00015988,2]
[330824097,1719844242387,-500.0,0.00015988,2]
[330824098,1719844242396,-500.0,0.00015988,2]
[330824099,1719844242406,-1941.02,0.00015988,2]
[330824100,1719844242415,-500.0,0.00015988,2]
[330824101,1719844242425,-612.21,0.00015988,2]
[330824102,1719844242434,-500.0,0.00015988,2]
[330824103,1719844242444,-500.0,0.00015988,2]
[330824104,1719844242453,-503.16947024,0.00015988,2]
[330824105,1719844242462,-500.0,0.00015988,2]
[330824106,1719844242471,-562.93,0.00015988,2]
[330824107,1719844242481,-500.0,0.00015988,2]
[330824108,1719844242490,-500.0,0.00015988,2]
[330824109,1719844242499,-500.0,0.0001599,2]
[330824110,1719844242508,-500.0,0.0001599,2]
[330824111,1719844242524,-500.0,0.0001599,2]
[330824112,1719844242533,-500.0,0.00015992,2]
[330824113,1719844242543,-500.0,0.00015992,2]
[330824114,1719844242552,-805.44,0.00015992,2]
[330824115,1719844242562,-500.0,0.00015992,2]
[330824116,1719844242571,-3755.35,0.00015992,2]
[330824117,1719844242580,-500.0,0.00015992,2]
[330824118,1719844242590,-500.0,0.00015992,2]
[330824119,1719844242600,-757.01,0.00015992,2]
[330824120,1719844242610,-500.0,0.00015994,2]
[330824121,1719844242619,-490.76095483,0.00015995,2]
[330824122,1719844242629,-500.0,0.00015995,2]
[330824123,1719844242641,-788.08,0.00015995,2]
[330824124,1719844242651,-500.0,0.00015995,2]
[330824125,1719844242660,-500.0,0.00015996,2]
[330824126,1719844242670,-500.0,0.00015996,2]
[330824127,1719844242679,-500.0,0.00015996,2]
[330824128,1719844242688,-2001.61,0.00015996,2]
[330824129,1719844242698,-500.0,0.00015996,2]
[330824130,1719844242707,-500.0,0.00015996,2]
[330824131,1719844242717,-500.0,0.00015996,2]
[330824132,1719844242726,-535.7,0.00015996,2]
[330824133,1719844242736,-500.0,0.00015997,2]
[330824134,1719844242745,-500.0,0.00015997,2]
[330824135,1719844242754,-500.0,0.00015997,2]
[330824136,1719844242764,-500.0,0.00015997,2]
[330824137,1719844242773,-500.0,0.00015997,2]
[330824138,1719844242782,-500.0,0.00015997,2]
[330824141,1719844242792,-797.89,0.00015997,2]
[330824143,1719844242801,-500.0,0.00015997,2]
[330824145,1719844242811,-500.0,0.00015997,2]
[330824148,1719844242820,-500.0,0.00015997,2]
[330824152,1719844242830,-563.68,0.00015997,2]
[330824154,1719844242840,-500.0,0.00015997,2]
[330824157,1719844242849,-500.0,0.00015997,2]
[330824159,1719844242862,-500.0,0.00015997,2]
[330824162,1719844242872,-636.01,0.00015997,2]
[330824164,1719844242882,-500.0,0.00015999,2]
[330824166,1719844242893,-500.0,0.00016,2]
[330824167,1719844242905,-1000.0,0.00016,9]
[330824168,1719844242914,-293.1302778,0.00016,2]
[330824169,1719844242924,-511.8243473,0.00016,2]
[330824170,1719844242934,-586.2605556,0.00016,2]
[330824171,1719844242944,-293.1302778,0.00016,2]
[330824172,1719844242953,-293.0841251,0.00016,2]
[330824173,1719844242963,-293.0841251,0.00016,2]
[330824174,1719844242973,-293.1782989,0.00016,2]
[330824175,1719844242982,-293.1782989,0.00016,2]
[330824176,1719844242992,-293.1782989,0.00016,2]
[330824177,1719844243001,-293.1782989,0.00016,2]
[330824178,1719844243011,-293.1782989,0.00016,2]
[330824179,1719844243021,-293.1782989,0.00016,2]
[330824180,1719844243030,-586.2605556,0.00016,2]
[330824182,1719844243040,-293.1302778,0.00016,2]
[330824184,1719844243050,-293.1302778,0.00016,2]
[330824185,1719844243059,-293.1302778,0.00016,2]
[330824187,1719844243068,-293.1302778,0.00016,2]
[330824189,1719844243077,-293.1302778,0.00016,2]
[330824191,1719844243087,-293.0841251,0.00016,2]
[330824193,1719844243097,-293.0841251,0.00016,2]
[330824195,1719844243106,-294.4439839,0.00016,2]
[330824197,1719844243118,-153.0,0.00016,2]
[330824198,1719844243128,-563.2961953,0.00016,2]
[330824200,1719844243137,-293.1302778,0.00016,2]
[330824202,1719844243147,-153.0,0.00016,2]
[330824203,1719844243156,-306.0,0.00016,2]
[330824204,1719844243165,-293.1302778,0.00016,2]
[330824205,1719844243175,-153.0,0.00016,2]
[330824206,1719844243184,-153.0,0.00016,2]
[330824207,1719844243193,-306.0,0.00016,2]
[330824208,1719844243202,-206.0005558,0.00016,2]
[330824209,1719844243212,-293.1302778,0.00016,2]
[330824210,1719844243221,-153.0,0.00016,2]
[330824211,1719844243231,-293.1302778,0.00016,2]
[330824212,1719844243240,-293.1302778,0.00016,2]
[330824213,1719844243248,-208.5297137,0.00016,2]
[330824214,1719844243258,-293.1782989,0.00016,2]
[330824215,1719844243267,-153.0,0.00016,2]
[330824216,1719844243277,-206.0005558,0.00016,2]
[330824217,1719844243286,-589.1143174,0.00016,2]
[330824218,1719844243295,-153.0,0.00016,2]
[330824220,1719844243305,-153.0,0.00016,2]
[330824222,1719844243314,-293.1302778,0.00016,2]
[330824224,1719844243323,-154.9309405,0.00016,2]
[330824226,1719844243333,-153.0,0.00016,2]
[330824228,1719844243342,-153.0,0.00016,2]
[330824230,1719844243352,-293.1302778,0.00016,2]
[330824232,1719844243362,-206.0005558,0.00016,2]
[330824234,1719844243371,-293.1302778,0.00016,2]
[330824236,1719844243381,-153.0,0.00016,2]
[330824238,1719844243391,-153.0,0.00016,2]
[330824240,1719844243401,-206.0005558,0.00016,2]
[330824242,1719844243410,-293.1302778,0.00016,2]
[330824244,1719844243419,-293.1302778,0.00016,2]
[330824246,1719844243429,-153.0,0.00016,2]
[330824248,1719844243438,-293.1302778,0.00016,2]
[330824250,1719844243447,-206.0005558,0.00016,2]
[330824252,1719844243456,-500.0,0.00016014,2]
[330824254,1719844243465,-574.46,0.00016014,2]
[330824256,1719844243474,-500.0,0.00016014,2]
[330824258,1719844243483,-606.33,0.00016014,2]
[330824260,1719844243493,-500.0,0.00016014,2]
[330824262,1719844243503,-500.0,0.00016014,2]
[330824264,1719844243515,-500.0,0.00016014,2]
[330824266,1719844243526,-5757.87,0.00016015,2]
[330824268,1719844243536,-500.0,0.00016015,2]
[330824270,1719844243545,-2085.94,0.00016017,2]
[330824272,1719844243555,-613.62,0.00016017,2]
[330824274,1719844243564,-3151.17,0.00016017,2]
[330824276,1719844243573,-594.09,0.00016017,2]
[330824278,1719844243582,-500.0,0.00016017,2]
[330824280,1719844243592,-503.67,0.00016017,2]
[330824282,1719844243603,-500.0,0.00016017,2]
[330824284,1719844243614,-500.0,0.00016017,2]
[330824286,1719844243623,-5452.5,0.00016017,2]
[330824288,1719844243632,-813.4,0.00016018,2]
[330824290,1719844243641,-20000.0,0.00016098,2]
[330824292,1719844243650,-218.1101149,0.00016253,2]
[330824294,1719844243661,-100000.0,0.00016254,2]
[330824296,1719844243670,-109774.21063501,0.00016254,2]
[330824298,1719844243680,-24628.5454638,0.00016255,2]
[330824301,1719844243698,-997.92273472,0.00016255,2]
[330824304,1719844243710,-451.17199324,0.00016255,2]
[330824307,1719844243720,-2381.5696328,0.00016255,2]
[330824309,1719844243731,-14862.68383088,0.00016255,2]
[330824311,1719844243740,-42219.78058169,0.00016255,2]
[330824313,1719844243750,-1500.0,0.00016255,2]
[330824315,1719844243759,-1500.0,0.00016255,2]
[330824317,1719844243768,-1000.0,0.00016438,2]
[330824320,1719844243778,-1000.0,0.00016438,2]
[330824321,1719844243787,-1000.0,0.00016438,2]
[330824323,1719844243797,-1000.0,0.00016438,2]
[330824326,1719844243806,-1000.0,0.00016438,2]
[330824328,1719844243815,-1000.0,0.00016438,2]
[330824329,1719844243825,-1000.0,0.00016438,2]
[330824331,1719844243834,-1000.0,0.00016438,2]
[330824333,1719844243844,-1000.0,0.00016438,2]
[330824335,1719844243853,-1000.0,0.00016438,2]
[330824338,1719844243866,-1000.0,0.00016438,2]
[330824339,1719844243876,-1000.0,0.00016438,2]
[330824341,1719844243885,-1000.0,0.00016438,2]
[330824343,1719844243895,-1000.0,0.00016438,2]
[330824345,1719844243906,-1000.0,0.00016438,2]
[330824347,1719844243917,-1000.0,0.00016438,2]
[330824349,1719844243926,-1000.0,0.00016438,2]
[330824351,1719844243936,-1000.0,0.00016438,2]
[330824354,1719844243945,-1000.0,0.00016438,2]
[330824356,1719844243954,-1000.0,0.00016438,2]
[330824357,1719844243964,-1000.0,0.00016438,2]
[330824359,1719844243973,-1000.0,0.00016438,2]
[330824362,1719844243983,-1000.0,0.00016438,2]
[330824364,1719844243992,-1000.0,0.00016438,2]
[330824366,1719844244002,-1000.0,0.00016438,2]
[330824367,1719844244011,-1000.0,0.00016438,2]
[330824369,1719844244021,-1000.0,0.00016438,2]
[330824371,1719844244031,-1000.0,0.00016438,2]
[330824373,1719844244040,-1000.0,0.00016438,2]
[330824375,1719844244050,-1000.0,0.00016438,2]
[330824377,1719844244059,-1000.0,0.00016438,2]
[330824379,1719844244069,-1000.0,0.00016438,2]
[330824381,1719844244079,-1000.0,0.00016438,2]
[330824383,1719844244089,-1000.0,0.00016438,2]
[330824385,1719844244099,-1000.0,0.00016438,2]
[330824387,1719844244109,-1000.0,0.00016438,2]
[330824389,1719844244119,-1000.0,0.00016438,2]
[330824391,1719844244129,-1000.0,0.00016438,2]
[330824393,1719844244138,-1000.0,0.00016438,2]
[330824395,1719844244147,-1000.0,0.00016438,2]
[330824397,1719844244156,-1000.0,0.00016438,2]
[330824399,1719844244165,-1000.0,0.00016438,2]
[330824401,1719844244174,-1000.0,0.00016438,2]
[330824403,1719844244184,-1000.0,0.00016438,2]
[330824405,1719844244194,-1000.0,0.00016438,2]
[330824407,1719844244203,-1000.0,0.00016438,2]
[330824409,1719844244213,-1000.0,0.00016438,2]
[330824411,1719844244222,-1000.0,0.00016438,2]
[330824413,1719844244232,-1000.0,0.00016438,2]
[330824415,1719844244241,-1000.0,0.00016438,2]
[330824417,1719844244250,-1000.0,0.00016438,2]
[330824420,1719844244260,-1000.0,0.00016438,2]
[330824421,1719844244269,-1000.0,0.00016438,2]
[330824423,1719844244278,-996.566068,0.00016438,2]
[330824426,1719844244289,-500.0,0.000165,2]
[330824428,1719844244299,-500.0,0.00016528,2]
[330824430,1719844244308,-500.0,0.00016529,2]
[330824432,1719844244317,-500.0,0.00016529,2]
[330824433,1719844244326,-527.55,0.00016532,2]
[330824435,1719844244335,-1067.34,0.00016532,2]
[330824437,1719844244344,-500.0,0.00016532,2]
[330824439,1719844244354,-500.0,0.00016532,2]
[330824441,1719844244365,-540.01,0.00016532,2]
[330824444,1719844244374,-1085.54,0.00016532,2]
[330824445,1719844244384,-600.53,0.00016532,2]
[330824447,1719844244393,-4275.34,0.00016532,2]
[330824450,1719844244403,-500.0,0.00016532,2]
[330824451,1719844244412,-500.0,0.00016533,2]
[330824453,1719844244421,-924.22,0.00016533,2]
[330824455,1719844244430,-500.0,0.00016533,2]
[330824457,1719844244439,-767.93,0.00016533,2]
[330824459,1719844244449,-1941.68,0.00016533,2]
[330824461,1719844244458,-500.0,0.00016533,2]
[330824463,1719844244467,-500.0,0.00016533,2]
[330824465,1719844244476,-500.0,0.00016533,2]
[330824467,1719844244485,-500.0,0.00016533,2]
[330824469,1719844244494,-260.24858496,0.00016533,2]
[330824471,1719844244504,-500.0,0.00016533,2]
[330824473,1719844244515,-500.0,0.00016533,2]
[330824475,1719844244527,-500.0,0.00016533,2]
[330824477,1719844244536,-500.0,0.00016533,2]
[330824479,1719844244546,-787.78,0.00016533,2]
[330824481,1719844244555,-500.0,0.00016533,2]
[330824496,1719844244679,-764.17,0.00016533,2]
[330824498,1719844244690,-545.76,0.00016533,2]
[330824500,1719844244700,-3687.93,0.00016533,2]
[330824502,1719844244710,-569.83,0.00016533,2]
[330824504,1719844244719,-500.0,0.00016533,2]
[330824506,1719844244729,-500.0,0.00016533,2]
[330824508,1719844244739,-1005.8,0.00016533,2]
[330824510,1719844244749,-500.0,0.00016533,2]
[330824512,1719844244758,-524.35,0.00016533,2]
[330824514,1719844244767,-500.0,0.00016533,2]
[330824516,1719844244778,-678.69,0.00016533,2]
[330824518,1719844244787,-500.0,0.00016533,2]
[330824520,1719844244797,-412.8591026,0.00016536,2]
[330824522,1719844244806,-500.0,0.00016536,2]
[330824524,1719844244816,-500.0,0.00016536,2]
[330824526,1719844244826,-500.0,0.00016536,2]
[330824528,1719844244837,-500.0,0.00016536,2]
[330824530,1719844244846,-306.39150991,0.00016536,2]
[330824532,1719844244856,-500.0,0.00016536,2]
[330824534,1719844244867,-500.0,0.00016536,2]
[330824536,1719844244877,-500.0,0.00016536,2]
[330824538,1719844244886,-1941.02,0.00016536,2]
[330824540,1719844244895,-500.0,0.00016536,2]
[330824542,1719844244907,-612.21,0.00016536,2]
[330824544,1719844244917,-500.0,0.00016536,2]
[330824546,1719844244927,-500.0,0.00016536,2]
[330824548,1719844244937,-500.0,0.00016536,2]
[330824550,1719844244947,-562.93,0.00016536,2]
[330824552,1719844244957,-500.0,0.00016536,2]
[330824554,1719844244967,-500.0,0.00016536,2]
[330824556,1719844244977,-263.03268462,0.00016538,2]
[330824558,1719844244986,-500.0,0.00016538,2]
[330824560,1719844244995,-500.0,0.00016538,2]
[330824562,1719844245004,-500.0,0.00016539,2]
[330824564,1719844245014,-500.0,0.00016539,2]
[330824566,1719844245023,-805.44,0.00016539,2]
[330824568,1719844245032,-500.0,0.00016539,2]
[330824570,1719844245041,-3755.35,0.00016539,2]
[330824572,1719844245050,-500.0,0.00016539,2]
[330824574,1719844245059,-757.01,0.00016539,2]
[330824576,1719844245068,-500.0,0.0001654,2]
[330824578,1719844245078,-500.0,0.00016543,2]
[330824580,1719844245087,-788.08,0.00016543,2]
[330824582,1719844245096,-500.0,0.00016543,2]
[330824584,1719844245106,-500.0,0.00016544,2]
[330824586,1719844245117,-428.66230991,0.00016544,2]
[330824588,1719844245126,-500.0,0.00016544,2]
[330824590,1719844245135,-2001.61,0.00016544,2]
[330824592,1719844245145,-500.0,0.00016544,2]
[330824594,1719844245155,-500.0,0.00016544,2]
[330824596,1719844245164,-500.0,0.00016544,2]
[330824598,1719844245172,-535.7,0.00016544,2]
[330824600,1719844245182,-405.99983929,0.00016545,2]
[330824603,1719844245191,-500.0,0.00016545,2]
[330824605,1719844245200,-500.0,0.00016545,2]
[330824606,1719844245209,-500.0,0.00016545,2]
[330824608,1719844245219,-500.0,0.00016545,2]
[330824611,1719844245228,-500.0,0.00016545,2]
[330824613,1719844245237,-797.89,0.00016545,2]
[330824615,1719844245247,-500.0,0.00016545,2]
[330824616,1719844245256,-500.0,0.00016545,2]
[330824618,1719844245265,-500.0,0.00016545,2]
[330824620,1719844245275,-563.68,0.00016545,2]
[330824623,1719844245284,-500.0,0.00016545,2]
[330824625,1719844245293,-500.0,0.00016545,2]
[330824626,1719844245303,-500.0,0.00016545,2]
[330824629,1719844245312,-636.01,0.00016545,2]
[330824630,1719844245321,-500.0,0.00016562,2]
[330824632,1719844245332,-574.46,0.00016562,2]
[330824634,1719844245341,-500.0,0.00016562,2]
[330824636,1719844245350,-606.33,0.00016562,2]
[330824638,1719844245360,-500.0,0.00016562,2]
[330824640,1719844245369,-500.0,0.00016562,2]
[330824642,1719844245379,-500.0,0.00016562,2]
[330824644,1719844245388,-5757.87,0.00016563,2]
[330824646,1719844245397,-500.0,0.00016563,2]
[330824649,1719844245406,-2085.94,0.00016565,2]
[330824651,1719844245416,-613.62,0.00016565,2]
[330824653,1719844245426,-3151.17,0.00016565,2]
[330824655,1719844245435,-594.09,0.00016565,2]
[330824657,1719844245446,-500.0,0.00016565,2]
[330824658,1719844245455,-503.67,0.00016565,2]
[330824660,1719844245464,-500.0,0.00016565,2]
[330824662,1719844245473,-5452.5,0.00016565,2]
[330824663,1719844245483,-813.4,0.00016566,2]
[330824664,1719844245492,-291.2448929,0.00016814,2]
[330824665,1719844245502,-530.4646089,0.00016953,2]
[330824666,1719844245512,-500.0,0.00017076,2]
[330824667,1719844245525,-500.0,0.00017077,2]
[330824668,1719844245535,-500.0,0.00017077,2]
[330824669,1719844245544,-527.55,0.0001708,2]
[330824670,1719844245553,-1067.34,0.0001708,2]
[330824671,1719844245564,-500.0,0.0001708,2]
[330824672,1719844245573,-500.0,0.0001708,2]
[330824673,1719844245582,-540.01,0.0001708,2]
[330824674,1719844245591,-1085.54,0.0001708,2]
[330824675,1719844245602,-600.53,0.0001708,2]
[330824676,1719844245613,-4275.34,0.0001708,2]
[330824677,1719844245622,-500.0,0.0001708,2]
[330824678,1719844245631,-500.0,0.00017081,2]
[330824680,1719844245640,-590.67933634,0.00017081,2]
[330824681,1719844245654,-333.54066366,0.00017081,2]
[330824682,1719844245663,-168.46853879,0.00017081,2]
[330824683,1719844245674,-331.53146121,0.00017081,2]
[330824684,1719844245683,-767.93,0.00017081,2]
[330824686,1719844245693,-1941.68,0.00017081,2]
[330824688,1719844245702,-500.0,0.00017081,2]
[330824690,1719844245711,-500.0,0.00017081,2]
[330824692,1719844245720,-500.0,0.00017081,2]
[330824694,1719844245729,-239.96587599,0.00017081,2]
[330824696,1719844245739,-500.0,0.00017081,2]
[330824698,1719844245748,-500.0,0.00017081,2]
[330824700,1719844245757,-500.0,0.00017081,2]
[330824702,1719844245766,-500.0,0.00017081,2]
[330824704,1719844245775,-500.0,0.00017081,2]
[330824706,1719844245784,-787.78,0.00017081,2]
[330824708,1719844245794,-764.17,0.00017081,2]
[330824710,1719844245803,-334.15374769,0.00017081,2]
[330824761,1719844246284,-1047.085254,0.00015432,2]
[330824763,1719844246293,-188.630553,0.00015432,2]
[330824765,1719844246303,-188.630553,0.00015432,2]
[330824767,1719844246312,-188.630549,0.00015432,2]
[330824769,1719844246321,-211.60625231,0.00017081,2]
[330824771,1719844246330,-3687.93,0.00017081,2]
[330824773,1719844246340,-569.83,0.00017081,2]
[330824775,1719844246349,-500.0,0.00017081,2]
[330824777,1719844246359,-500.0,0.00017081,2]
[330824779,1719844246375,-1005.8,0.00017081,2]
[330824781,1719844246385,-500.0,0.00017081,2]
[330824783,1719844246394,-524.35,0.00017081,2]
[330824785,1719844246404,-500.0,0.00017081,2]
[330824787,1719844246413,-678.69,0.00017081,2]
[330824789,1719844246423,-500.0,0.00017081,2]
[330824791,1719844246432,-500.0,0.00017084,2]
[330824793,1719844246441,-500.0,0.00017084,2]
[330824795,1719844246451,-163.41462026,0.00017084,2]
[330824797,1719844246460,-500.0,0.00017084,2]
[330824799,1719844246470,-500.0,0.00017084,2]
[330824801,1719844246480,-500.0,0.00017084,2]
[330824803,1719844246490,-500.0,0.00017084,2]
[330824805,1719844246499,-1941.02,0.00017084,2]
[330824807,1719844246508,-500.0,0.00017084,2]
[330824809,1719844246519,-612.21,0.00017084,2]
[330824811,1719844246530,-500.0,0.00017084,2]
[330824813,1719844246539,-500.0,0.00017084,2]
[330824815,1719844246548,-500.0,0.00017084,2]
[330824817,1719844246558,-562.93,0.00017084,2]
[330824819,1719844246567,-500.0,0.00017084,2]
[330824821,1719844246576,-500.0,0.00017084,2]
[330824823,1719844246585,-500.0,0.00017086,2]
[330824825,1719844246594,-500.0,0.00017086,2]
[330824826,1719844246603,-500.0,0.00017087,2]
[330824828,1719844246615,-500.0,0.00017087,2]
[330824830,1719844246624,-805.44,0.00017087,2]
[330824832,1719844246633,-500.0,0.00017087,2]
[330824834,1719844246642,-3755.35,0.00017087,2]
[330824836,1719844246651,-500.0,0.00017087,2]
[330824838,1719844246660,-757.01,0.00017087,2]
[330824840,1719844246670,-500.0,0.00017088,2]
[330824842,1719844246680,-500.0,0.00017091,2]
[330824845,1719844246690,-788.08,0.00017091,2]
[330824846,1719844246699,-500.0,0.00017091,2]
[330824849,1719844246709,-500.0,0.00017092,2]
[330824850,1719844246718,-500.0,0.00017092,2]
[330824853,1719844246727,-2001.61,0.00017092,2]
[330824855,1719844246737,-500.0,0.00017092,2]
[330824857,1719844246747,-500.0,0.00017092,2]
[330824859,1719844246756,-500.0,0.00017092,2]
[330824861,1719844246766,-535.7,0.00017092,2]
[330824862,1719844246775,-500.0,0.00017093,2]
[330824865,1719844246785,-500.0,0.00017093,2]
[330824866,1719844246794,-182.9621414,0.00017093,2]
[330824868,1719844246804,-500.0,0.00017093,2]
[330824871,1719844246813,-500.0,0.00017093,2]
[330824873,1719844246823,-797.89,0.00017093,2]
[330824874,1719844246832,-500.0,0.00017093,2]
[330824876,1719844246841,-500.0,0.00017093,2]
[330824879,1719844246850,-500.0,0.00017093,2]
[330824880,1719844246859,-563.68,0.00017093,2]
[330824882,1719844246869,-500.0,0.00017093,2]
[330824885,1719844246879,-500.0,0.00017093,2]
[330824886,1719844246888,-500.0,0.00017093,2]
[330824888,1719844246897,-636.01,0.00017093,2]
[330824891,1719844246910,-500.0,0.0001711,2]
[330824893,1719844246920,-574.46,0.0001711,2]
[330824895,1719844246929,-500.0,0.0001711,2]
[330824897,1719844246938,-606.33,0.0001711,2]
[330824898,1719844246948,-500.0,0.0001711,2]
[330824900,1719844246957,-500.0,0.0001711,2]
[330824902,1719844246967,-500.0,0.0001711,2]
[330824904,1719844246976,-5757.87,0.00017111,2]
[330824906,1719844246985,-500.0,0.00017111,2]
[330824908,1719844246995,-2085.94,0.00017113,2]
[330824910,1719844247004,-613.62,0.00017113,2]
[330824913,1719844247015,-3151.17,0.00017113,2]
[330824915,1719844247024,-594.09,0.00017113,2]
[330824917,1719844247034,-500.0,0.00017113,2]
[330824918,1719844247044,-503.67,0.00017113,2]
[330824920,1719844247053,-500.0,0.00017113,2]